Cogmind - Beta 13 @@@ ROGUE MODE // 2024.06.18 @ 21:38:30 Player: doughoff Result: Self-destructed Performance ------------- Evolutions (1) 500 Regions Visited (5) 1000 Robots Destroyed (43) 215 Value Destroyed (1117) 1117 Prototype IDs (1) 20 Alien Tech Used (0) 0 Bonus (16) 16 TOTAL SCORE: 2868 Bonus ------- Follower Combat Kills 58 Friendly Fire -42 Cogmind --------- Core Integrity 82/400 Matter 115/300 Energy 16/100 System Corruption 5% Temperature Cool (0) Movement Walking (190) Ox1 Location -9/Exiles Parts ------- > --- POWER (1) -------- (None) > --- PROPULSION (4) --- Aluminum Leg Aluminum Leg Aluminum Leg > --- UTILITY (2) ------ High-capacity Storage Unit Medium Armor Plating > --- WEAPON (2) ------- Heavy Assault Rifle > --- INVENTORY (20) --- Wheel Improved Heat Sink Medium Armor Plating Medium Armor Plating Medium Armor Plating Bomb Drone Bay Heavy Assault Rifle Heavy Assault Rifle Shotgun Shotgun Peak State ------------ > --- POWER ------------ Light Ion Engine > --- PROPULSION ------- Light Treads Light Treads Light Treads Light Treads > --- UTILITY ---------- High-capacity Storage Unit Medium Armor Plating > --- WEAPON ----------- Heavy Assault Rifle Autogun > --- INVENTORY -------- Aluminum Leg Aluminum Leg Aluminum Leg Aluminum Leg Wheel Improved Heat Sink Signal Interpreter Medium Armor Plating Medium Armor Plating Medium Armor Plating Bomb Drone Bay Heavy Assault Rifle Heavy Assault Rifle Heavy Assault Rifle Shotgun Shotgun Grenade Launcher Grenade Launcher Rocket Launcher [Rating: 16] Favorites ----------- Power Ion Engine Engine Ion Engine Propulsion Light Treads Treads Light Treads Leg Aluminum Leg Wheel Compact Wheel Utility Targeting Computer Storage High-capacity Storage Unit Processor Targeting Computer Protection Medium Armor Plating Weapon Heavy Assault Rifle Energy Gun Small Laser Energy Cannon Advanced Beam Cannon Ballistic Gun Heavy Assault Rifle Launcher Grenade Launcher Special Weapon Welding Torch Build | -11 -10 -10 -9 -9 -9 ------- Run | Yrd Mat Min Mat Min Exi Slots Evolved 2 | . . . 2 . . Power . | . . . . . . Propulsion 2 | . . . 2 . . Utility . | . . . . . . Weapon . | . . . . . . Parts Attached 58 | 6 16 1 24 2 9 Power 7 | 1 4 . 2 . . Engine 7 | 1 4 . 2 . . Core . | . . . . . . Reactor . | . . . . . . Propulsion 22 | 2 3 1 12 . 4 Treads 12 | 2 . . 10 . . Leg 8 | . 2 1 1 . 4 Wheel 2 | . 1 . 1 . . Hover . | . . . . . . Flight . | . . . . . . Utility 7 | 1 1 . 2 2 1 Device . | . . . . . . Storage 2 | 1 . . 1 . . Processor 2 | . 1 . . 1 . Hackware . | . . . . . . Protection 3 | . . . 1 1 1 Artifact . | . . . . . . Weapon 22 | 2 8 . 8 . 4 Energy Gun 2 | 1 1 . . . . Energy Cannon 1 | . . . 1 . . Ballistic Gun 15 | 1 6 . 7 . 1 Ballistic Cannon . | . . . . . . Launcher 3 | . . . . . 3 Special Weapon 1 | . 1 . . . . Impact Weapon . | . . . . . . Slashing Weapon . | . . . . . . Piercing Weapon . | . . . . . . Special Melee Weapon . | . . . . . . Unidentified Prototypes 1 | . . . 1 . . Parts Lost 20 | . 5 . 5 . 10 Power 3 | . . . 2 . 1 Propulsion 10 | . 3 . 3 . 4 Utility 1 | . . . . . 1 Weapon 6 | . 2 . . . 4 Highest Loss Streak 10 | . 2 . 2 . 10 To Critical Strikes 1 | . . . . . 1 Average Slot Usage (%) 93 | . 86 92 97 100 84 Engine 11 | . 14 14 9 11 8 Treads 27 | . 18 . 36 44 35 Leg 5 | . 2 21 4 . 2 Wheel 2 | . 5 . 2 . . Storage 12 | . 14 14 11 11 11 Processor 6 | . 3 14 8 . 8 Protection 2 | . . . 2 11 . Ballistic Gun 23 | . 24 28 21 22 14 Naked Turns . | . . . . . . Heaviest Build 56 | 10 14 14 56 56 49 Greatest Support 80 | 40 40 20 80 80 80 Greatest Overweight (x) 1 | . 1 1 1 . 1 Average Overweight (x) . | . . . . . . Largest Inventory Capacity 20 | 8 8 8 20 20 20 Average Capacity 13 | 6 8 8 17 20 20 Most Carried 20 | 3 8 8 20 20 20 Average Carried 12 | 1 6 7 14 19 19 Final Capacity 20 | 8 8 8 20 20 20 Final Carried 20 | 3 8 7 20 20 11 Class Distribution -------------------- 55% | Scavenger-Mutant 44% | Mutant Dominant Class ---------------- Mutant | -10/Materials Mutant | -10/Mines Scavenger-Mutant | -9/Materials Scavenger-Mutant | -9/Mines Scavenger-Mutant | -9/Exiles Resources | -11 -10 -10 -9 -9 -9 ----------- Run | Yrd Mat Min Mat Min Exi Matter Collected 1379 | 200 371 80 622 106 . Remotely . | . . . . . . Salvage Created 1414 | . 435 102 770 91 16 Parts 85 | . 27 2 46 10 . Haulers Intercepted 2 | . . . 2 . . Recyclers Shooed 1 | . . . 1 . . Parts Field Recycled . | . . . . . . Retrieved Matter . | . . . . . . Parts Self-Destructed . | . . . . . . Prevented . | . . . . . . Kills | -11 -10 -10 -9 -9 -9 ------- Run | Yrd Mat Min Mat Min Exi Combat Hostiles Destroyed 39 | . 12 2 16 5 4 Guns 35 | . 12 2 16 5 . AOE 4 | . . . . . 4 Classes Destroyed 10 | . 3 . 6 . 1 Worker 2 | . 1 . 1 . . Builder 1 | . . . 1 . . Hauler 2 | . . . 2 . . Operator 1 | . . . 1 . . Watcher 2 | . . . 2 . . Swarmer 10 | . 3 . 3 4 . Grunt 21 | . 9 2 9 1 . Duelist 1 | . . . 1 . . Sentry 3 | . . . 3 . . Assembled 4 | . . . . . 4 Best Kill Streak 5 | . 3 2 5 4 4 Combat Bots Only 5 | . 2 2 5 4 4 Max Kills in Single Turn 2 | . 1 1 1 1 2 Gunslinging . | . . . . . . Exploded 2 | . . . . . 2 Melee . | . . . . . . Uniques/NPCs Destroyed . | . . . . . . Combat | -11 -10 -10 -9 -9 -9 -------- Run | Yrd Mat Min Mat Min Exi Hostile Shots Fired 298 | . 100 8 98 15 77 Missed 75 | . 24 3 22 3 23 Damage Taken 3216 | . 925 63 1086 95 1047 Core 565 | . 247 . 105 8 205 Absorbed by Shields . | . . . . . . Regen/Repaired (Parts) 61 | . . . 61 . . Core Remaining (%) 50 | 100 . 1 . . . Volleys Fired 156 | . 56 7 70 12 11 Largest 2 | . 2 2 2 2 1 Hottest 60 | . 60 40 46 46 33 Shots Fired 294 | . 103 15 140 24 12 Gun 282 | . 100 15 140 24 3 Cannon . | . . . . . . Launcher 9 | . . . . . 9 Special 3 | . 3 . . . . Kinetic 281 | . 99 15 140 24 3 Thermal 4 | . 4 . . . . Explosive 9 | . . . . . 9 Electromagnetic . | . . . . . . Robot Hit Streak 24 | . 18 7 24 5 1 Robot Miss Streak 6 | . 6 1 3 3 3 Penetration Max . | . . . . . . Secondary Targets 4 | . 2 . 2 . . Max Gunslinging Chain 1 | . 1 . 1 . . Shots Hit Robots 197 | . 65 13 102 14 3 Core Hits 85 | . 27 7 35 6 10 Critical Kills . | . . . . . . Critical Parts Destroyed . | . . . . . . Critical Strikes . | . . . . . . Melee Attacks . | . . . . . . Impact . | . . . . . . Slashing . | . . . . . . Piercing . | . . . . . . Sneak Attacks . | . . . . . . Combat Hostiles . | . . . . . . Follow-up Attacks . | . . . . . . Damage Inflicted 3012 | . 620 162 1521 215 494 Guns 2519 | . 611 158 1517 215 18 Cannons . | . . . . . . Explosions 476 | . . . . . 476 Melee . | . . . . . . Ramming 17 | . 9 4 4 . . Kinetic 2509 | . 601 158 1517 215 18 Thermal 10 | . 10 . . . . Explosive 476 | . . . . . 476 Electromagnetic . | . . . . . . Impact . | . . . . . . Slashing . | . . . . . . Piercing . | . . . . . . Highest Corruption 5 | . 1 1 1 1 5 Average Corruption 1 | . 1 1 1 1 1 Corruption Purged . | . . . . . . Corruption Blocked . | . . . . . . Effects 16 | . 5 3 1 4 3 Message Errors 5 | . 2 . 1 1 1 Matter Fused 5 | . 3 1 . 1 . Heat Flow Errors 1 | . . 1 . . . Energy Discharges 2 | . . . . 2 . Parts Rejected 1 | . . . . . 1 Misfires 2 | . . 1 . . 1 Overload Shots . | . . . . . . Overflow Damage 37 | . . . . . 37 Projectiles . | . . . . . . Explosions 37 | . . . . . 37 Melee . | . . . . . . Knockbacks . | . . . . . . Impact . | . . . . . . Kinetic . | . . . . . . Secondary . | . . . . . . Self-Inflicted Damage 66 | . 4 . . . 62 Shots 3 | . . . . . 3 Rammed 2 | . 2 . . . . Targets Rammed 5 | . 2 2 1 . . Kicked 2 | . . 2 . . . Crushed 1 | . . . 1 . . Highest Temperature 109 | . 33 109 24 12 . Average Temperature 11 | . 11 52 8 6 . Received Heat Transfer 711 | . 285 33 393 . . Siege Activations . | . . . . . . Robots Corrupted . | . . . . . . Combat Hostiles . | . . . . . . Parts Fried . | . . . . . . Impact Corruptions . | . . . . . . Robots Melted . | . . . . . . Combat Hostiles . | . . . . . . Parts Melted . | . . . . . . Heat Transferred 25 | . 25 . . . . Parts Sabotaged . | . . . . . . Parts Stolen . | . . . . . . Parts Stripped . | . . . . . . Power Chain Reactions . | . . . . . . Alert | -11 -10 -10 -9 -9 -9 ------- Run | Yrd Mat Min Mat Min Exi Peak Influence 251 | . 251 105 245 90 . Initial 54 | . . 40 . 54 . Average 88 | . 92 52 114 67 . Maximum Alert Level 1 | . 1 . 1 . . Low Security (%) 91 | 100 89 100 85 100 . Level 1 8 | . 10 . 14 . . Level 2 . | . . . . . . Level 3 . | . . . . . . Level 4 . | . . . . . . Level 5 . | . . . . . . High Security . | . . . . . . Max Security . | . . . . . . Squads Dispatched 6 | . 3 . 3 . . Investigation 2 | . 2 . . . . Extermination . | . . . . . . Reinforcement 4 | . 1 . 3 . . Assault . | . . . . . . Garrison . | . . . . . . Intercept . | . . . . . . Searches Triggered . | . . . . . . Construction Impeded . | . . . . . . Haulers Reinforced . | . . . . . . Active Scanning Responses . | . . . . . . Cargo Convoy Interrupts . | . . . . . . Stealth | -11 -10 -10 -9 -9 -9 --------- Run | Yrd Mat Min Mat Min Exi Distress Signals 4 | . 1 . 3 . . Communications Jammed . | . . . . . . Distress Signals . | . . . . . . Times Spotted 61 | . 17 2 26 7 9 Peak Tracking Total 11 | . 3 2 6 4 11 Tactical Retreats 3 | . 1 . 1 . 1 Traps | -11 -10 -10 -9 -9 -9 ------- Run | Yrd Mat Min Mat Min Exi Traps Triggered 3 | . 2 . 1 . . Indirectly . | . . . . . . Trap Hack Attempts . | . . . . . . Triggered . | . . . . . . Disarmed . | . . . . . . Reprogrammed . | . . . . . . Reused . | . . . . . . Traps Extracted . | . . . . . . Installed . | . . . . . . Triggered . | . . . . . . Machines | -11 -10 -10 -9 -9 -9 ---------- Run | Yrd Mat Min Mat Min Exi Machines Disabled 4 | . 1 . . . 3 Max in Single Turn 2 | . 1 . . . 2 Machines Repaired . | . . . . . . Machines Dismantled . | . . . . . . Machines Sabotaged . | . . . . . . Overloaded Fab Kills . | . . . . . . Hacking | -11 -10 -10 -9 -9 -9 --------- Run | Yrd Mat Min Mat Min Exi Machines Accessed 15 | . 7 . 7 1 . Terminals 10 | . 5 . 5 . . Fabricators . | . . . . . . Repair Stations 1 | . . . 1 . . Recycling Units 3 | . 2 . 1 . . Scanalyzers . | . . . . . . Garrison Access . | . . . . . . Total Hacks 41 | . 21 . 19 1 . Successful 27 | . 11 . 15 1 . Failed 14 | . 10 . 4 . . Catastrophic 2 | . 1 . 1 . . Database Lockouts . | . . . . . . Manual 25 | . 12 . 13 . . Terminals 32 | . 17 . 15 . . Fabricators . | . . . . . . Repair Stations 3 | . . . 3 . . Recycling Units 5 | . 4 . 1 . . Scanalyzers . | . . . . . . Garrison Access . | . . . . . . Terminal Hacks 11 | . 4 . 6 1 . Open Door 1 | . . . . 1 . Locate Traps 3 | . 1 . 2 . . Hauler Manifests 2 | . 1 . 1 . . Zone Layout 5 | . 2 . 3 . . Fabricator Hacks . | . . . . . . Repair Station Hacks 2 | . . . 2 . . Scan Component 1 | . . . 1 . . Repair 1 | . . . 1 . . Recycling Unit Hacks 3 | . 2 . 1 . . Report Inventory 3 | . 2 . 1 . . Scanalyzer . | . . . . . . Garrison Access Hacks . | . . . . . . Unauthorized Hacks 11 | . 5 . 6 . . Terminals 9 | . 3 . 6 . . Track 2 | . . . 2 . . Botnet 7 | . 3 . 4 . . Fabricators . | . . . . . . Repair Stations . | . . . . . . Recycling Units 2 | . 2 . . . . Tunnel 2 | . 2 . . . . Scanalyzers . | . . . . . . Garrison Access . | . . . . . . Data Cores Recovered . | . . . . . . Used . | . . . . . . Hacking Detections 11 | . 5 . 6 . . Full Trace Events . | . . . . . . Feedback Events . | . . . . . . Feedback Blocked . | . . . . . . Robot Schematics Acquired . | . . . . . . Robots Built . | . . . . . . Authchips . | . . . . . . Time . | . . . . . . Total Robot Build Rating . | . . . . . . Part Schematics Acquired . | . . . . . . Parts Built . | . . . . . . Authchips . | . . . . . . Time . | . . . . . . Total Part Build Rating . | . . . . . . Parts Repaired 1 | . . . 1 . . Time 26 | . . . 26 . . Parts Recycled . | . . . . . . Recycled Matter . | . . . . . . Retrieved Matter . | . . . . . . Retrieved Components . | . . . . . . Parts Scanalyzed . | . . . . . . Part Schematics Acquired . | . . . . . . Parts Damaged . | . . . . . . Bothacking | -11 -10 -10 -9 -9 -9 ------------ Run | Yrd Mat Min Mat Min Exi Used RIF Installer . | . . . . . . Robots Hacked . | . . . . . . Non-combat . | . . . . . . Combat . | . . . . . . Robot Hacks Applied . | . . . . . . Relay Couplers Released . | . . . . . . Fabnet Peak Effective % . | . . . . . . Robots Rewired . | . . . . . . Allies Hacked . | . . . . . . Hacks Repelled . | . . . . . . Allies | -11 -10 -10 -9 -9 -9 -------- Run | Yrd Mat Min Mat Min Exi Total Allies 1 | . . 1 . . . Largest Group 1 | . . 1 1 . . Highest-Rated Group 31 | . . 31 31 . . Highest-Rated Ally 31 | . . 31 31 . . Total Orders . | . . . . . . Ally Attacks 13 | . . . 13 . . Total Damage 149 | . . . 149 . . Kills 2 | . . . 2 . . Allies Corrupted . | . . . . . . Allies Melted . | . . . . . . Intel | -11 -10 -10 -9 -9 -9 ------- Run | Yrd Mat Min Mat Min Exi Robot Analysis Total . | . . . . . . Derelict Logs Recovered 1 | . . . . 1 . Drone Launches . | . . . . . . Drone Recoveries . | . . . . . . Exploration | -11 -10 -10 -9 -9 -9 ------------- Run | Yrd Mat Min Mat Min Exi Turns Passed 3415 | 61 898 462 1246 595 153 Spaces Moved 1792 | 33 487 287 569 341 75 Core 2 | 2 . . . . . Treads 1192 | 31 227 . 521 341 72 Legs 350 | . 60 287 . . 3 Wheels 248 | . 200 . 48 . . Hover . | . . . . . . Flight . | . . . . . . Fastest Speed 50 | 50 100 120 80 160 160 Average Speed 150 | 153 139 148 154 160 161 Slowest Speed 190 | 160 190 190 160 160 190 Overloaded Moves . | . . . . . . Propulsion Burnouts . | . . . . . . Robots Hopped . | . . . . . . Cave-ins Triggered . | . . . . . . Exploration Rate (%) 48 | 4 75 70 51 57 33 Regions Visited 5 Branch Regions 3 Pre-discovered Areas 2 | . 2 . . . . Known Exits Taken 1 | . . . . 1 . Unknown Exits Taken 4 | 1 1 1 1 . . Scrap Searched 1 | . . . . 1 . Spaces Dug . | . . . . . . Terrain Destroyed 27 | . . . . . 27 Melee . | . . . . . . Projectile . | . . . . . . AOE 27 | . . . . . 27 Terrain Rammed . | . . . . . . Walls Destroyed . | . . . . . . Machines Disabled . | . . . . . . Actions | -11 -10 -10 -9 -9 -9 --------- Run | Yrd Mat Min Mat Min Exi Total 2240 | 41 621 307 804 371 96 Wait 173 | . 43 11 109 10 . Move 1787 | 32 486 286 568 340 75 Hop . | . . . . . . Pick Up 33 | 3 9 . 18 3 . Fast Attach 16 | 6 2 . 8 . . Attach 17 | . 4 1 3 . 9 Detach 3 | . . . 3 . . Swap 25 | . 10 . 13 2 . Drop 25 | . 9 . 11 4 1 Fire 156 | . 56 7 70 12 11 Melee . | . . . . . . Ram 2 | . 2 . . . . Kick 2 | . . 2 . . . Crush 1 | . . . 1 . . Escape Stasis . | . . . . . . Rewire . | . . . . . . Trap . | . . . . . . Miscellaneous . | . . . . . . Route ------- -11/Scrapyard -10/Materials (discovered 4 exits: *Mat x3 / [*Min]) -10/Mines -9/Materials (discovered 2 exits: [*Mat] / *Min) -9/Mines (discovered 3 exits: [*Mat x2] / *Exi) -9/Exiles History --------- Turn | Location | Event 10 | -11/Scrapyard | Discovered new exit (range 14) 62 | -11/Scrapyard | Entered Materials 316 | -10/Materials | Build established: Mutant 410 | -10/Materials | Discovered new exit (range 10) 563 | -10/Materials | Discovered new exit (range 16) 705 | -10/Materials | Discovered new exit (range 16) 752 | -10/Materials | Core integrity fell below 50% 904 | -10/Materials | Discovered new exit (range 16) 919 | -10/Materials | Core integrity fell below 20% 960 | -10/Materials | Entered Mines 1276 | -10/Mines | Received a Mining Laser from a helpful Derelict 1401 | -10/Mines | Discovered new exit (range 14) 1422 | -10/Mines | Entered Materials 1422 | -9/Materials | Accompanied by 1 ally 1422 | -9/Materials | Evolved 2 slots: Propulsion x2 1596 | -9/Materials | Repaired Lgt. Treads 1902 | -9/Materials | Build established: Scavenger-Mutant 2037 | -9/Materials | Discovered new exit (range 3) 2548 | -9/Materials | Discovered new exit (range 13) 2668 | -9/Materials | Entered Mines 2672 | -9/Mines | Discovered new exit (range 14) 2773 | -9/Mines | Found the Drone Emporium 2781 | -9/Mines | Found Prototype Device 2851 | -9/Mines | Learned Materials emergency access door positions 3098 | -9/Mines | Discovered new exit (range 9) 3254 | -9/Mines | Deemed a non-threat by the Exiles lab entrance 3255 | -9/Mines | Discovered new exit (range 5) 3263 | -9/Mines | Identified exit to Exiles 3263 | -9/Mines | Entered Exiles 3300 | -9/Exiles | Met 8R-AWN 3326 | -9/Exiles | Met EX-HEX 3358 | -9/Exiles | Attacked by the Exiles 3387 | -9/Exiles | Core integrity fell below 50% 3416 | -9/Exiles | Self-destructed Last Messages --------------- 03403_ HV Slug penetrates Wall. 03407_ Penetrated by HV Slug. 03407_ HV Slug penetrates Machine. 03407_ HV Slug penetrates Wall. 03407_ HV Slug penetrates Machine. 03407_ Grenade Launcher destroyed. 03409_ The unstable cave ceiling collapses. 03411_ Penetrated by HV Slug. 03411_ HV Slug penetrates Machine. 03411_ Penetrated by HV Slug. 03411_ HV Slug penetrates Wall. 03413_ Penetrated by HV Slug. 03413_ HV Slug penetrates Wall. 03414_ The unstable cave ceiling collapses. 03415_ System corrupted: Aluminum Leg rejected. 03415_ The unstable cave ceiling collapses. 03416_ Penetrated by HV Slug. 03416_ HV Slug penetrates Wall. 03416_ Penetrated by HV Slug. 03416_ HV Slug penetrates Wall. Map ----- +----------------------------------------------------+ | ?????????????????????????????????????????????????? | | ?????????????????????????????????????????????????? | | ?????????????????????????????????????????????????? | | ?????????????????????????????????????????????????? | | ?????????????????????????????????????????????????? | | ?????????????????????????????????????????????????? | | ?????????????????????????????????????????????????? | | ?????????????????????????????????????????????????? | | ?????????????????????????????????????????????????? | | ?????????????????????????????????????????????????? | | ??????????????????????? ?????????????????????? | | ?????????????????????? #????????????????????? | | ?????????????????????? #????????????????????? | | ??????????????????????# #????????????????????? | | ??????????????????????# #????????????????????? | | ??????????????????????# #????????????????????? | | ??????????????????????; #???"?""?????????????? | | ??????????????????????# #??"""""?????????????? | | ????????????????????### ###"" """????????????? | | ????????????????????#; """????????????? | | ????????????????????#; ""????????????? | | ????????????????????#; ""????????????? | | ?????????????????????# ""????????????? | | ?????????????????????# """???????????? | | ?????????????????????# """???????????? | | ??????????????????????# @ """???????????? | | ??????????????????????# """???????????? | | ?????????????????????## "X" """???????????? | | ?????????????????????# """ ??????????????? | | ?????????????????????##" """""??????????????? | | ?????????????????????## ####??????????????? | | ????????????????????##" g #????????????????? | | ???????????????????##"" a # #????????????????? | | ??????????????????""""" # #????????????????? | | ?????????????????" " " #?###########????? | | ????????????????"" " # ##"""""""""##???? | | ??????????????? " " """ """"##??? | | ?????????????? [ "" " #??? | | ?????????????? " """#??? | | ?????????????? " "#??? | | ?????????????? " "##?? | | ?????????????? ""### | | ??????????????? """"" """# | | ??????????????? ###### "# | | ????????????????""#?????#####""" # | | ????????????????????????????##""" | | ?????????????????????????????#"""" | | ?????????????????????????????#"" | | ??????????????????????????????""" | | ????????????????????????????? | +----------------------------------------------------+ Best States ------------- Heat Dissipation 28 Energy Generation 10 Energy Capacity 250 Matter Stores 300 Matter Capacity 300 Sight Range 16 Terrain Scan Density 10 Armor Coverage 225 Evasion (%) 55 Targeting Accuracy 5 Recoil Reduction 4 Item Schematics ----------------- None Robot Schematics ------------------ None Fabricated ------------ Nothing Alien Tech Used ----------------- None Achievements -------------- Close Call Challenges ------------ None Game ------ Seed SpreadDispersionCycler Manual? 0 Play Time 00:23:52 Cumulative 32.7 hours Start 2024.06.18 @ 21:16:17 End 2024.06.18 @ 21:38:30 Sessions 1 Manual Loads 0 Difficulty Rogue Special Mode None Game No. 40 Rogue 33 Adventurer 7 Explorer 0 Win Type - Total 1 Types 1/0/0/0/0/0/0/0/0 Lore% 13 Gallery% 29 Achievement% 31 Wizard Run 0 Options --------- Layout 0 ASCII 0 Keyboard 0 Movement Mouse Keybinds 0 Fullscreen 2 Font 24/Smallcaps Map View 113x50 Zoom Use 0% Tactical HUD 1 Map Filters NONE Filters NONE Steam 1 RUN: 376d162d-95ef-4713-b5ff-049fcd0340e5